bitfinex-derivatives/quotes_ETHF0:USTF0_20250807
["timestamp","ask_amount","ask_price","bid_price","bid_amount"]
[1754561141631,0.63895595,3767.0,3766.4,0.8772]
[1754561141935,1.96785595,3767.0,3766.5,4.07938]
[1754561142241,1.3289,3766.9,3766.5,4.07938]
[1754561142536,1.3961,3766.8,3766.0,1.2798]
[1754561142843,1.3961,3767.9,3767.2,1.3915]
[1754561143034,0.63951473,3767.8,3767.1,1.32696]
[1754561143335,41.43951473,3767.7,3767.1,1.32696]
[1754561143636,0.63951473,3767.6,3767.4,0.53074]
[1754561143835,40.8,3767.7,3767.6,0.53072]
[1754561144040,0.63991332,3767.7,3767.6,2.2687]
[1754561144240,0.63991332,3767.9,3767.7,1.92221]
[1754561144439,1.3289,3768.1,3767.8,0.8772]
[1754561144440,0.63991332,3768.0,3767.8,0.8772]
[1754561144637,0.63991332,3767.9,3767.4,0.53075]
[1754561144838,1.3289,3767.6,3766.7,2.2687]
[1754561145143,0.63991332,3767.8,3765.1,26.55386]
[1754561145336,0.63991332,3768.0,3765.9,1.32741]
[1754561145637,0.63991332,3767.9,3767.1,0.8772]
[1754561145829,0.63991332,3768.0,3767.2,3.5485]
[1754561146036,1.3961,3768.4,3765.6,2.65501]
[1754561146037,0.63991332,3768.3,3767.7,3.5485]
[1754561146336,3.6436,3768.1,3767.0,0.8772]
[1754561146639,4.28351332,3768.0,3767.2,0.8772]
[1754561146942,0.53077,3767.3,3766.6,2.2687]
[1754561147236,0.53075,3767.4,3766.6,2.79955]
[1754561147431,2.3147,3767.6,3766.5,2.2687]
[1754561147637,2.3147,3767.6,3766.5,2.157]
[1754561147836,2.84543,3767.6,3766.6,2.2687]
[1754561148136,0.53074,3767.5,3766.6,2.2687]
[1754561148334,2.3147,3767.6,3766.6,2.2687]
[1754561148335,2.84543,3767.6,3766.6,2.2687]
[1754561148534,2.3147,3767.6,3767.1,0.53077]
[1754561148744,2.3147,3768.1,3767.3,2.2687]
[1754561148938,0.64044576,3768.1,3767.0,3.5485]
[1754561149441,0.53068,3767.9,3767.1,0.53077]
[1754561149639,2.03654576,3768.1,3767.0,3.5485]
[1754561149834,2.03654576,3768.1,3766.6,2.2687]
[1754561149835,1.3289,3767.3,3766.6,2.2687]
[1754561150045,1.3289,3767.3,3766.7,0.53083]
[1754561150239,1.3961,3767.1,3766.6,2.2687]
[1754561150538,0.53085,3766.7,3766.1,2.2687]
[1754561150738,3.6436,3767.1,3766.1,2.2687]
[1754561150939,0.5309,3766.3,3765.9,1.2798]
[1754561151138,3.6436,3766.4,3765.6,2.2687]
[1754561151342,1.85987,3765.9,3765.6,2.2687]
[1754561151637,1.3289,3765.6,3765.3,3.5485]
[1754561151842,1.3289,3765.7,3764.8,4.10824263]
[1754561152043,1.3961,3765.5,3764.8,4.10824263]
[1754561152239,1.92712,3765.5,3764.8,2.2687]
[1754561152641,0.53103,3765.4,3764.8,2.2687]
[1754561152847,0.53104,3765.3,3764.8,2.2687]
[1754561153149,0.53104,3765.3,3762.9,29.32169621]
[1754561153150,0.9186,3765.0,3764.2,2.71674263]
[1754561153440,3.6436,3764.5,3764.1,3.23104263]
[1754561153641,1.3961,3764.4,3764.0,2.2687]
[1754561153837,1.3961,3764.4,3764.0,3.5485]
[1754561154035,0.5312,3764.2,3763.5,3.5485]
[1754561154245,0.39548893,3764.8,3764.5,0.53114]
[1754561154440,0.53102,3765.5,3764.7,3.5485]
[1754561154741,0.5311,3764.9,3764.2,0.8772]
[1754561154949,1.3961,3764.6,3763.0,3.5485]
[1754561155243,1.3961,3765.0,3763.9,0.53123]
[1754561155444,2.24637,3764.9,3763.5,1.2798]
[1754561155645,0.39256279,3765.0,3763.5,1.2798]
[1754561155646,1.3289,3764.2,3763.5,1.2798]
[1754561155840,1.3289,3764.2,3763.6,0.53128]
[1754561156043,1.3289,3764.2,3763.6,1.40848]
[1754561156242,1.3289,3764.2,3763.6,0.8772]
[1754561156745,1.8601,3764.2,3763.6,0.8772]
[1754561156938,0.53121,3764.1,3763.5,2.6713]
[1754561157139,0.53124,3763.9,3763.1,0.8772]
[1754561157434,44.05623,3764.0,3763.1,0.8772]
[1754561157638,43.525,3764.0,3763.1,0.8772]
[1754561157839,0.53126,3763.8,3763.1,0.8772]
[1754561158144,3.6436,3763.5,3763.1,0.8772]
[1754561158438,1.86024,3763.2,3762.9,0.95669621]
[1754561158639,0.9186,3763.7,3762.9,0.95669621]
[1754561158843,2.2475,3763.2,3762.9,0.95669621]
[1754561159044,3.6436,3763.2,3762.9,0.95669621]
[1754561159250,4.10476,3763.0,3762.9,0.95669621]
[1754561159549,4.10476,3763.0,3761.7,2.7411]
[1754561159550,2.7219,3762.9,3761.7,2.7411]
[1754561159845,40.8,3762.8,3761.7,3.5805]
[1754561160240,2.1711,3763.3,3762.7,3.5805]
[1754561160440,2.1711,3763.3,3762.3,1.3981]
[1754561160649,1.4023,3763.5,3762.8,0.8394]
[1754561160849,40.8,3763.2,3763.1,4.11185]
[1754561161247,40.8,3763.2,3763.1,3.5805]
[1754561162444,42.9711,3763.2,3762.4,2.2375]
[1754561162643,42.9711,3763.2,3762.5,0.53143]
[1754561162841,2.1711,3762.8,3762.4,2.2375]
[1754561163037,2.1711,3762.8,3762.4,0.8394]
[1754561163038,1.3196,3762.7,3762.4,0.8394]
[1754561163256,0.53139,3762.8,3762.0,1.343]
[1754561163548,3.5734,3762.9,3762.0,1.343]
[1754561163747,3.5734,3762.9,3762.0,1.8745]
[1754561163950,3.5734,3762.9,3762.0,1.343]
[1754561164148,40.8,3763.2,3762.1,2.2375]
[1754561164347,1.41717568,3764.7,3762.1,2.2375]
[1754561164348,2.7219,3764.7,3763.0,2.2375]
[1754561164542,0.8515,3764.9,3763.4,2.1824]
[1754561164743,40.8,3764.8,3763.8,4.90862]
[1754561164950,40.8,3764.8,3762.6,1.32854]
[1754561165142,0.8515,3765.5,3764.6,3.5805]
[1754561165348,27.745,3765.6,3764.9,0.53109]
[1754561165655,1.3196,3765.3,3764.6,3.5805]
[1754561165952,2.7219,3765.3,3764.6,2.2375]
[1754561166147,0.53106,3765.2,3764.6,2.2375]
[1754561166345,1.3196,3765.1,3764.6,3.5805]
[1754561166746,0.53104,3765.3,3764.8,2.2375]
[1754561166946,0.53104,3765.3,3763.8,1.32812]
[1754561166947,0.53107,3765.1,3764.5,1.343]
[1754561167153,0.53105,3765.2,3764.5,1.343]
[1754561167350,0.53105,3765.2,3764.4,2.2375]
[1754561167351,3.5734,3765.2,3764.4,0.8394]
[1754561167548,2.7219,3764.6,3763.9,2.2375]
[1754561167946,2.7219,3764.6,3763.5,1.343]
[1754561168241,1.32779,3764.8,3763.5,1.343]
[1754561168447,1.3196,3764.2,3763.3,2.2375]
[1754561168846,1.3196,3764.2,3763.4,0.53131]
[1754561169048,1.3196,3764.2,3763.3,2.2375]
[1754561169249,1.3196,3764.2,3761.5,27.534]
[1754561169250,1.3196,3763.7,3762.8,1.3981]
[1754561169449,0.53134,3763.2,3762.7,0.8394]
[1754561169652,0.53134,3763.2,3762.2,39.6521]
[1754561169653,1.3196,3763.1,3762.2,39.6521]
[1754561169844,0.53136,3763.0,3762.2,39.6521]
[1754561170144,1.3196,3763.1,3762.2,1.92956]
[1754561170351,1.3196,3763.1,3762.2,1.3981]
[1754561170747,1.32828,3763.4,3762.0,1.343]
[1754561170748,0.53143,3762.5,3762.0,1.343]
[1754561170948,0.53146,3762.3,3761.7,1.3981]
[1754561171154,40.8,3762.2,3761.4,0.53158]
[1754561171451,44.3734,3762.2,3761.5,3.5805]
[1754561171655,40.8,3762.2,3761.6,0.53156]
[1754561171954,40.8,3762.2,3761.5,3.5805]
[1754561172252,41.33148,3762.2,3761.5,3.5805]
[1754561172454,0.53149,3762.1,3761.5,3.5805]
[1754561172847,40.8,3762.2,3761.7,0.53155]
[1754561173047,40.8,3762.2,3761.5,3.5805]
[1754561173250,40.8,3762.2,3761.5,4.11207]
[1754561173456,41.33148,3762.2,3761.5,2.1824]
[1754561173750,3.5734,3761.7,3761.0,1.343]
[1754561173946,0.5316,3761.4,3760.4,2.76922]
[1754561174143,27.198,3761.8,3760.4,2.2375]
[1754561174144,1.3085,3761.2,3760.4,2.2375]
[1754561174343,1.3085,3761.2,3760.5,0.53172]
[1754561174549,40.8,3762.2,3761.2,3.5805]
[1754561174550,41.33149,3762.2,3761.2,3.5805]
[1754561174852,40.8,3762.2,3761.4,1.3981]
[1754561175056,40.8,3762.2,3762.1,3.5805]
[1754561175853,40.8,3762.2,3761.8,0.53153]
[1754561176047,40.8,3762.2,3760.5,65.424]
[1754561176351,40.8,3762.2,3762.0,0.8394]
[1754561176657,1.3196,3762.1,3761.6,0.53155]
[1754561176856,1.3196,3762.1,3761.4,1.3981]
[1754561177051,1.3196,3762.1,3761.7,0.53155]
[1754561177254,40.8,3762.2,3762.1,2.2375]
[1754561177455,40.8,3762.2,3762.1,3.5805]
[1754561178054,0.53149,3762.1,3761.6,1.343]
[1754561178253,3.5734,3762.0,3761.6,1.343]
[1754561178553,2.7219,3761.9,3761.6,2.2375]
[1754561178753,0.3912086,3762.3,3762.2,2.76898]
[1754561179056,0.3912086,3762.3,3762.2,3.5805]
[1754561179259,0.3912086,3762.3,3761.7,0.53153]
[1754561179446,1.3196,3762.1,3760.8,2.7411]
[1754561179654,2.7219,3762.2,3761.3,0.8394]
[1754561179852,2.7219,3762.2,3761.5,0.53156]
[1754561180053,2.7219,3762.2,3761.4,1.3981]
[1754561180360,2.7219,3762.2,3761.1,2.7411]
[1754561180557,2.7219,3762.2,3761.0,1.32911]
[1754561180558,2.7219,3762.2,3761.3,2.7411]
[1754561180759,2.7219,3762.2,3761.9,3.5805]
[1754561180953,0.3912086,3762.3,3762.2,1.343]
[1754561181153,0.3912086,3762.3,3762.2,3.5805]
[1754561181954,0.3912086,3762.3,3761.7,1.32884]
[1754561181955,0.3912086,3762.3,3761.7,1.343]
[1754561182265,1.4023,3763.6,3763.3,0.53131]
[1754561182449,1.3196,3763.7,3763.4,1.3981]
[1754561182654,42.2023,3763.6,3763.0,2.2375]
[1754561182955,3.5734,3763.5,3762.9,0.53137]
[1754561183152,0.53131,3763.4,3762.4,2.2375]
[1754561183661,2.7219,3763.5,3762.6,2.7411]
[1754561183856,40.8,3763.6,3762.7,3.56599]
[1754561184159,40.8,3763.6,3763.1,0.53134]
[1754561184454,0.53116,3764.4,3763.8,3.27234]
[1754561184655,1.4023,3764.7,3763.8,3.27234]
[1754561184656,0.53116,3764.5,3763.8,3.27234]
[1754561184859,40.8,3764.3,3764.2,3.5805]
[1754561185253,40.8,3764.3,3763.8,0.53123]
[1754561185454,0.53119,3764.2,3764.0,3.5805]
[1754561185662,0.53123,3764.0,3763.4,1.8743]
[1754561185956,0.53124,3763.9,3763.3,3.5805]
[1754561186661,2.7219,3763.7,3763.2,1.37072]
[1754561186957,0.8515,3764.0,3762.2,1.32869]
[1754561186958,1.85089,3763.5,3762.9,0.53138]
[1754561187159,0.53129,3763.6,3762.9,0.53138]
[1754561187359,1.4023,3763.8,3762.9,3.5805]
[1754561187551,1.4023,3764.4,3763.3,3.5805]
[1754561187753,27.9453,3764.4,3763.4,0.53131]
[1754561188160,42.1196,3764.3,3763.3,3.5805]
[1754561188465,1.32769,3765.1,3764.1,1.3981]
[1754561188466,0.53116,3764.5,3764.1,1.3981]
[1754561188661,0.53116,3764.5,3763.8,0.53124]
[1754561188662,2.64741,3764.7,3763.8,3.5805]
[1754561188857,0.5312,3764.2,3763.3,0.53131]
[1754561189066,2.742,3764.3,3763.3,0.913]
[1754561189264,0.53122,3764.0,3763.3,1.44431]
[1754561189564,2.6711,3763.6,3763.3,3.7952]
[1754561189762,3.5032,3763.6,3763.3,2.4309]
[1754561189958,2.6711,3763.5,3762.8,3.7952]
[1754561190164,2.6711,3763.5,3762.9,0.53137]
[1754561190366,2.1711,3763.5,3763.0,0.53135]
[1754561190663,2.1711,3763.5,3763.2,2.4309]
[1754561190859,0.5313,3763.5,3762.8,0.53139]
[1754561191064,1.4224,3763.3,3762.9,2.4309]
[1754561191262,1.4224,3763.2,3762.9,0.913]
[1754561191464,1.4224,3763.2,3763.0,0.53136]
[1754561191663,1.4224,3763.2,3762.9,2.96227]
[1754561191966,2.2545,3763.2,3762.9,2.96227]
[1754561192360,2.2545,3763.2,3763.0,0.53135]
[1754561192668,2.2545,3763.2,3762.9,2.96227]
[1754561192864,1.4224,3763.0,3762.2,2.8822]
[1754561193064,1.2487,3763.1,3762.4,1.3643]
[1754561193268,1.2487,3763.1,3762.9,1.44436]
[1754561193462,0.63304442,3764.1,3763.1,3.7952]
[1754561193463,30.25943,3764.0,3763.1,3.7952]
[1754561193665,0.53124,3763.9,3763.4,0.5313]
[1754561193961,3.5032,3764.0,3763.4,0.913]
[1754561194370,40.8,3763.9,3763.4,0.913]
[1754561194669,3.5032,3763.8,3763.4,2.4309]
[1754561195070,3.5032,3763.7,3763.4,2.96219]
[1754561195277,40.8,3763.9,3763.7,0.53126]
[1754561195576,40.8,3763.9,3763.8,3.7952]
[1754561195770,40.8,3763.9,3763.8,1.5179]
[1754561196064,1.4224,3764.2,3763.9,0.53123]
[1754561196269,3.5032,3764.3,3763.6,1.3643]
[1754561196472,4.03438,3764.3,3763.8,0.53124]
[1754561196660,1.2487,3764.0,3763.8,0.53124]
[1754561196863,1.4224,3764.8,3763.6,1.32818]
[1754561197065,3.5032,3764.9,3764.5,3.7952]
[1754561197267,26.0,3765.3,3764.5,3.7952]
[1754561197464,41.43147878,3765.2,3764.5,3.7952]
[1754561197672,0.63147878,3765.1,3764.5,3.7952]
[1754561197877,1.2487,3765.1,3764.5,3.7952]
[1754561198468,3.91e-06,3764.6,3764.5,2.8822]
[1754561198770,1.0,3766.0,3765.5,0.53101]
[1754561198771,3.5032,3765.6,3765.5,0.53101]
[1754561199066,40.8,3765.6,3765.5,0.53101]
[1754561199270,44.3032,3765.6,3765.5,0.53101]
[1754561199470,40.8,3765.6,3765.5,1.44401]
[1754561199671,42.0487,3765.6,3765.5,0.53101]
[1754561199866,44.3032,3765.6,3765.5,0.53101]
[1754561200677,40.8,3765.6,3765.5,4.32621]
[1754561201176,44.3032,3765.6,3765.5,0.53101]
[1754561201372,3.5032,3765.5,3765.1,0.53105]
[1754561201677,1.2487,3765.3,3764.8,1.32778]
[1754561201877,1.2487,3765.3,3765.2,0.53105]
[1754561202074,2.0808,3765.0,3764.5,2.2773]
[1754561202273,2.2545,3765.3,3764.2,1.32798]
[1754561202472,3.5032,3765.2,3765.0,0.53107]
[1754561202666,3.5032,3765.2,3764.4,1.32792]
[1754561202667,66.515,3765.6,3765.1,3.7952]
[1754561202870,68.7695,3765.6,3765.5,0.53101]
[1754561203081,1.4224,3765.5,3765.4,0.53102]
[1754561203274,3.5032,3765.5,3765.4,0.53102]
[1754561203467,40.8,3765.6,3765.4,0.53102]
[1754561203667,40.8,3765.6,3765.4,4.32622]
[1754561203873,40.8,3765.6,3765.2,0.53105]
[1754561204178,40.8,3765.6,3764.9,2.4309]
[1754561204179,0.8321,3765.2,3764.9,2.4309]
[1754561204472,1.2487,3765.5,3765.0,0.53108]
[1754561204672,41.6321,3765.6,3765.2,0.53104]
[1754561204673,3.5032,3765.4,3765.2,0.53104]
[1754561204872,40.8,3765.6,3765.5,3.7952]
[1754561205272,42.0487,3765.6,3765.2,0.53105]
[1754561205579,2.6711,3765.5,3765.2,3.7952]
[1754561205772,1.4224,3765.4,3764.8,1.3643]
[1754561205968,2.6711,3765.4,3765.2,0.53104]
[1754561206173,2.6711,3765.4,3765.2,2.96194]
[1754561206474,1.2487,3765.5,3765.4,0.53102]
[1754561206674,0.8321,3765.3,3765.0,0.913]
[1754561206976,3.20216,3765.2,3764.2,1.32797]
[1754561207175,4.03426,3765.2,3764.3,2.4309]
[1754561207376,2.2545,3765.1,3764.9,0.53108]
[1754561207575,1.2487,3765.0,3764.8,0.5311]
[1754561207779,1.77979,3765.0,3764.7,0.53111]
[1754561208071,3.20219,3765.0,3764.7,0.53111]
[1754561208278,44.3032,3765.6,3764.8,3.7952]
[1754561208468,0.53101,3765.5,3765.1,0.53106]
[1754561208670,3.5032,3765.4,3765.1,0.53106]
[1754561208867,3.20215,3765.3,3764.8,2.8822]
[1754561209070,3.5032,3765.1,3764.4,0.913]
[1754561209272,0.53108,3765.0,3764.5,0.53114]
[1754561209480,2.2545,3765.0,3764.8,0.5311]
[1754561209681,3.5032,3765.5,3764.8,0.5311]
[1754561209979,0.53109,3765.0,3764.6,0.53112]
[1754561210178,4.83086,3765.2,3764.4,0.53116]
[1754561210576,0.53113,3764.7,3764.3,0.53117]
[1754561210772,2.6711,3764.6,3764.4,0.53116]
[1754561210974,2.6711,3764.6,3763.4,38.261]
[1754561210975,2.0808,3765.8,3764.9,3.7952]
[1754561211172,2.0808,3765.8,3764.1,2.65606]
[1754561211173,0.63060697,3766.3,3765.9,1.3643]
[1754561211369,25.269,3766.4,3765.9,3.7952]
[1754561211580,0.53081,3767.0,3766.2,0.53091]
[1754561211778,25.256,3767.3,3766.4,2.4309]
[1754561212077,25.256,3767.3,3766.5,0.913]
[1754561212078,0.63074711,3767.2,3766.5,0.913]
[1754561212278,0.63074711,3767.2,3766.6,2.8822]
[1754561212470,0.6308818,3768.5,3767.8,0.913]
[1754561212674,40.8,3768.9,3768.1,0.53064]
[1754561212871,1.0,3769.0,3768.3,0.53062]
[1754561213084,0.53053,3768.9,3768.2,3.7952]
[1754561213382,40.8,3768.8,3768.2,2.04853]
[1754561213584,40.8,3768.8,3768.2,0.53062]
[1754561213782,42.2224,3768.8,3768.6,0.53057]
[1754561213974,40.8,3768.8,3768.7,3.7952]
[1754561214173,40.8,3768.8,3768.3,0.53061]
[1754561214378,0.5306,3768.5,3767.1,1.32696]
[1754561214585,0.5306,3768.5,3766.7,1.32709]
[1754561214586,1.953,3768.4,3767.6,2.80801]
[1754561214975,1.4224,3768.4,3767.7,0.5307]
[1754561215176,1.4224,3768.4,3767.6,3.7952]
[1754561215678,3.5032,3768.7,3767.1,2.4309]
[1754561215885,3.5032,3768.7,3767.4,1.32686]
[1754561216085,1.4224,3768.7,3768.5,0.913]
[1754561216478,1.0,3769.0,3768.8,2.96145]
[1754561216681,1.0,3769.0,3768.9,3.7952]
[1754561217184,40.8,3770.7,3770.0,2.0347]
[1754561217373,40.8,3770.7,3770.0,2.56507]
[1754561217580,1.2487,3771.3,3770.2,2.0347]
[1754561217882,1.4224,3771.4,3771.0,1.89452]
[1754561218183,42.2224,3771.3,3770.5,2.0347]
[1754561218687,1.95266,3770.9,3770.1,0.913]
[1754561219177,0.53026,3770.8,3770.1,0.913]
[1754561219378,1.4224,3770.9,3770.1,0.913]
[1754561219578,1.4224,3770.9,3770.5,2.076]
[1754561219784,1.3079,3770.9,3770.1,1.2473]
[1754561219979,1.3079,3770.9,3770.2,0.8287]
[1754561220182,0.53029,3770.7,3770.2,0.8287]
[1754561220382,2.0123,3770.6,3769.9,2.076]
[1754561220686,2.01235,3770.2,3769.9,2.076]
[1754561220873,0.53038,3770.0,3769.3,2.076]
[1754561221074,1.482,3770.1,3769.4,0.53046]
[1754561221281,1.482,3770.7,3769.7,1.2473]
[1754561221685,1.482,3770.7,3769.8,0.8287]
[1754561221887,1.3079,3770.9,3769.8,0.8287]
[1754561221888,1.3079,3770.9,3770.6,0.53028]
[1754561222188,1.482,3771.2,3770.8,0.53026]
[1754561222189,1.482,3771.1,3770.8,0.53026]
[1754561222379,1.482,3771.0,3770.8,0.53026]
[1754561222575,40.8,3771.3,3769.8,1.326]
[1754561222576,40.8,3771.3,3770.9,2.60625]
[1754561222780,40.8,3771.3,3769.9,1.32598]
[1754561222781,40.8,3771.3,3771.2,0.8287]
[1754561222980,40.8,3771.3,3771.2,3.1963]
[1754561223181,1.9027,3772.0,3771.2,3.1963]
[1754561223481,1.0,3772.0,3771.2,3.1963]
[1754561223682,0.53025,3771.0,3770.0,0.53037]
[1754561223884,2.7899,3770.9,3769.9,2.076]
[1754561224082,0.5303,3770.6,3769.9,2.076]
[1754561224283,0.5303,3770.6,3770.0,0.8287]
[1754561224284,40.8,3770.6,3770.0,0.8287]
[1754561224481,1.3079,3770.4,3769.4,1.949]
[1754561224677,1.482,3769.5,3768.9,1.949]
[1754561224884,3.3204,3769.1,3768.3,0.8287]
[1754561225087,3.32041,3769.1,3768.2,0.53063]
[1754561225282,1.482,3769.0,3767.7,0.8287]
[1754561225587,1.43326,3768.7,3767.8,0.53068]
[1754561225782,0.53062,3768.3,3767.7,0.8287]
[1754561226178,0.9027,3768.7,3767.4,38.202]
[1754561226179,1.3079,3767.9,3767.4,0.53074]
[1754561226386,1.3079,3767.7,3766.9,0.8287]
[1754561226684,1.3079,3767.5,3766.3,1.949]
[1754561226890,1.482,3767.3,3766.6,0.53084]
[1754561227095,1.482,3767.3,3766.3,1.949]
[1754561227282,1.482,3767.3,3767.0,0.53079]
[1754561227484,1.482,3767.2,3767.0,0.53079]
[1754561227781,0.9027,3767.9,3767.4,0.53073]
[1754561227981,1.3079,3767.8,3767.2,0.53077]
[1754561228288,2.2106,3767.7,3767.4,0.53074]
[1754561228488,1.482,3767.6,3767.4,0.53074]
[1754561228683,38.202,3768.6,3767.4,0.53074]
[1754561228684,2.2106,3768.5,3767.4,0.8287]
[1754561228990,38.202,3768.6,3767.4,0.8287]
[1754561229189,1.482,3768.2,3767.5,0.53073]
[1754561229490,1.482,3768.2,3766.6,1.32714]
[1754561229491,3.6926,3767.9,3766.8,1.32707]
[1754561229785,38.202,3768.6,3767.3,1.2473]
[1754561229987,1.3079,3768.8,3768.4,0.53059]
[1754561230293,1.482,3769.4,3768.9,0.53052]
[1754561230485,0.9027,3769.3,3767.8,2.076]
[1754561230690,0.9027,3768.9,3768.3,0.53061]
[1754561230883,1.482,3769.1,3768.1,0.8287]
[1754561231088,1.482,3769.1,3768.2,1.2473]
[1754561231291,1.3079,3769.0,3767.6,2.15547]
[1754561231592,0.53051,3769.1,3768.4,0.5306]
[1754561231792,3.6926,3769.0,3768.6,0.53057]
[1754561231989,1.83845,3768.8,3768.2,0.53062]
[1754561232188,0.53053,3769.0,3768.3,0.53061]
[1754561232490,1.482,3768.5,3768.3,1.35931]
[1754561232788,1.482,3768.9,3768.3,0.8287]
[1754561233092,1.482,3768.9,3768.7,0.53055]
[1754561233285,1.482,3768.9,3768.4,0.53059]
[1754561233482,1.482,3768.8,3768.0,0.53066]
[1754561233795,1.3079,3768.5,3768.2,0.53063]
[1754561234090,1.3079,3768.5,3766.5,2.076]
[1754561234091,0.9027,3767.9,3766.5,2.076]
[1754561234290,1.3079,3767.5,3766.5,0.8287]
[1754561234485,0.9027,3766.9,3766.5,0.53086]
[1754561234685,0.9027,3766.9,3765.9,0.95593409]
[1754561234686,1.482,3766.7,3765.9,2.28330409]
[1754561234891,3.6926,3766.7,3766.6,0.53086]
[1754561235086,1.482,3766.7,3766.6,0.53086]
[1754561235286,3.6926,3767.0,3766.5,0.53086]
[1754561235494,3.6926,3766.8,3765.9,3.11200409]
[1754561235689,2.2106,3766.8,3765.9,0.95593409]
[1754561235891,2.0129,3766.3,3765.9,0.95593409]
[1754561236194,2.2106,3766.0,3765.9,0.95593409]
[1754561236498,0.53096,3765.9,3764.9,0.8287]
[1754561236693,1.482,3765.8,3765.7,0.53098]
[1754561236992,2.7899,3765.8,3765.7,0.53098]
[1754561237186,2.7899,3765.8,3765.7,3.73878]
[1754561237390,40.8,3766.0,3765.9,3.72726]
[1754561237591,3.6926,3765.9,3765.7,3.2078]
[1754561237797,41.33095,3766.0,3765.7,3.2078]
[1754561237798,3.6926,3765.8,3765.7,3.2078]
[1754561237993,3.6926,3765.8,3765.7,1.676]
[1754561238196,1.32731,3766.2,3765.3,1.676]
[1754561238495,0.53114,3764.7,3764.5,3.2078]
[1754561238688,0.53114,3764.7,3764.1,2.7962]
[1754561238689,0.4116,3764.6,3764.1,2.7962]
[1754561238887,0.53121,3764.1,3763.3,0.53131]
[1754561239094,24.495,3764.0,3763.3,0.53131]
[1754561239294,40.8,3763.9,3763.6,0.53128]
[1754561239494,40.8,3763.9,3763.8,2.75885]
[1754561239686,40.8,3763.9,3763.8,4.00615]
[1754561240298,40.02438,3763.9,3763.8,4.00615]
[1754561240497,24.451,3764.9,3763.8,2.57542]
[1754561240702,0.53111,3764.8,3764.4,3.2078]
[1754561240899,24.9821,3764.9,3764.4,3.2078]
[1754561241096,24.451,3764.9,3764.4,3.2078]
[1754561241494,40.8,3764.7,3764.5,0.53115]
[1754561241695,40.8,3764.7,3764.6,0.8287]
[1754561242001,40.8,3764.7,3764.6,2.2276]
[1754561242692,40.8,3764.7,3764.6,0.8287]
[1754561243296,40.8,3764.7,3764.6,3.4749]
[1754561243700,38.214,3765.4,3764.7,0.53113]
[1754561243998,27.5508,3765.3,3764.7,0.53112]
[1754561244198,27.5508,3765.3,3764.9,0.53109]
[1754561244395,24.343,3765.3,3764.9,0.53109]
[1754561244603,24.343,3765.3,3764.8,0.53111]
[1754561244795,38.214,3765.4,3765.1,0.53107]
[1754561245002,38.214,3765.4,3765.3,2.75864]
[1754561245196,3.2078,3766.3,3766.2,0.53092]
[1754561245398,3.2078,3766.3,3765.4,1.3989]
[1754561245604,40.8,3766.1,3765.5,0.8287]
[1754561245798,40.8,3766.1,3765.7,0.53098]
[1754561246001,40.8,3766.1,3766.0,0.8287]
[1754561246197,40.8,3766.1,3766.0,2.2276]
[1754561246399,40.8,3766.1,3766.0,3.4749]
[1754561246699,27.97563,3766.8,3766.4,1.3989]
[1754561246899,27.97563,3766.8,3766.5,0.8287]
[1754561247207,40.8,3766.7,3766.6,4.00576]
[1754561247992,41.4438,3768.0,3767.4,0.53075]
[1754561248196,1.32674,3767.8,3766.8,3.2078]
[1754561248395,1.32677,3767.7,3766.8,3.2078]
[1754561248695,0.53081,3767.0,3766.4,0.53088]
[1754561248896,24.235,3766.9,3766.6,0.8287]
[1754561249102,24.235,3766.8,3766.7,0.8368]
[1754561249497,0.53085,3766.7,3766.4,3.2078]
[1754561249696,0.0014,3766.6,3766.4,3.2078]
[1754561249906,0.53226,3766.6,3766.4,4.0446]
[1754561250205,0.0028,3766.5,3766.4,3.2078]
[1754561250706,0.53082,3766.9,3766.4,3.73868]
[1754561250900,0.0014,3766.5,3766.4,3.2078]
[1754561251098,0.0014,3766.5,3766.0,0.53094]
[1754561251099,0.53089,3766.4,3766.0,3.2078]
[1754561251294,0.0014,3766.5,3766.2,0.53092]
[1754561251505,0.5309,3766.4,3766.0,3.2078]
[1754561251800,0.0028,3766.1,3766.0,3.2078]
[1754561252005,0.0028,3766.1,3766.0,4.0446]
[1754561252204,0.5323,3766.4,3766.0,3.2078]
[1754561252410,0.5309,3766.3,3766.1,0.8368]
[1754561252704,0.53233,3766.1,3766.0,3.2078]
[1754561253006,0.0014,3766.4,3766.0,3.73875]
[1754561253208,0.5309,3766.3,3766.2,0.8368]
[1754561253408,0.0014,3766.4,3766.2,0.8368]
[1754561253409,0.5309,3766.4,3766.2,0.8368]
[1754561253706,0.0028,3766.3,3766.2,0.8368]
[1754561254206,0.0037,3765.8,3765.5,3.2078]
[1754561254396,0.53236,3765.9,3765.5,3.2078]
[1754561254602,0.53099,3765.7,3765.5,3.2078]
[1754561254896,3.2092,3766.4,3765.7,1.252]
[1754561255102,0.53236,3765.9,3765.8,0.8368]
[1754561255300,0.0014,3766.6,3765.7,0.8368]
[1754561255504,0.53087,3766.5,3766.1,3.5983]
[1754561255701,40.8,3766.4,3766.2,3.5983]
[1754561255905,40.8,3766.4,3766.3,3.5983]